Cogmind - Beta 10.1 @@@ ROGUE MODE // 2020.09.24 @ 18:45:13 Player: Valguris Result: Destroyed by Lightning with EMDS Performance ------------- Evolutions (4) 2000 Regions Visited (18) 3600 Robots Destroyed (303) 1515 Value Destroyed (10433) 10433 Prototype IDs (39) 780 Alien Tech Used (0) 0 Bonus (3679) 3679 TOTAL SCORE: 22007 Bonus ------- High Alert Combat Kills 1090 Follower Combat Kills 2711 Network Hubs Disabled 200 Met Imprinter 300 Built Enhanced Grunts 300 A7 Reached Mainframe 300 Met R17 at Cetus 500 Friendly Fire -1722 Cogmind --------- Core Integrity 0/850 Matter 290/300 Energy 91/100 System Corruption 36% Temperature Cool (0) Movement Core (50) Location -6/Hub_04(d) Parts ------- > --- POWER (2) -------- (None) > --- PROPULSION (2) --- Armored Huge Wheel > --- UTILITY (9) ------ Experimental Signal Interpreter > --- WEAPON (2) ------- (None) > --- INVENTORY (4) ---- Improved Hacking Suite Bore Cannon Molecular Deconstructor Peak State ------------ > --- POWER ------------ Quantum Reactor Quantum Reactor > --- PROPULSION ------- Centrium Heavy Treads > --- UTILITY ---------- Advanced Cooling System High-capacity Storage Unit High-capacity Storage Unit Experimental Signal Interpreter Advanced Targeting Computer Zionite Weapon Casing Medium Reactive Plating Medium Regenerative Plating Force Field > --- WEAPON ----------- Bore Cannon Bore Cannon > --- INVENTORY -------- Wheel Armored Huge Wheel Improved Cooling System High-capacity Storage Unit Makeshift Sensor Array Improved Particle Charger Improved Hacking Suite Advanced System Shield Proton Cannon Heavy Plasma Cannon Heavy Plasma Cannon Heavy Flak Cannon Missile Launcher Remote Datajack Molecular Deconstructor CR-A16's Behemoth Slayer [Rating: 93] Favorites ----------- Power Heavy Deuterium Engine Engine Heavy Deuterium Engine Reactor Quantum Reactor Propulsion Light Treads Treads Light Treads Leg Aluminum Leg Wheel Wheel Utility Humpback Device Improved Cooling System Storage Humpback Processor Advanced Targeting Computer Hackware Improved System Shield Protection Hardened Heavy Armor Plating Weapon Heavy Plasma Cannon Energy Gun Advanced Beam Rifle Energy Cannon Heavy Plasma Cannon Ballistic Gun Heavy Battle Rifle Ballistic Cannon Advanced Assault Cannon Launcher Heavy Rocket Launcher Special Weapon Remote Datajack Piercing Weapon CR-A16's Behemoth Slayer Build | -11 -10 -10 -10 -9 -8 -7 -7 -7 -7 -7 -6 -6 -6 -6 -6 -6 -6 -6 ------- Run | Scr Mat Min Exi Min Mat Fac Low Low Zio Dee Pro Fac Was Fac Ext Cet Arc Hub Slots Evolved 8 | . . . . . 4 2 . . . . . 2 . . . . . . Power 1 | . . . . . . 1 . . . . . . . . . . . . Propulsion . | . . . . . . . . . . . . . . . . . . . Utility 7 | . . . . . 4 1 . . . . . 2 . . . . . . Weapon . | . . . . . . . . . . . . . . . . . . . Parts Attached 421 | 6 11 4 1 2 26 43 13 27 37 7 36 2 3 86 49 25 11 32 Power 22 | 1 1 . . . 3 6 2 . 1 . 1 . . 2 2 2 . 1 Engine 19 | 1 1 . . . 3 6 2 . 1 . 1 . . 2 2 . . . Core . | . . . . . . . . . . . . . . . . . . . Reactor 3 | . . . . . . . . . . . . . . . . 2 . 1 Propulsion 36 | 2 1 2 . . 5 3 3 1 4 . 4 . . 6 . 1 . 4 Treads 18 | 2 . . . . 3 1 3 1 4 . 2 . . 1 . . . 1 Leg 5 | . 1 2 . . 2 . . . . . . . . . . . . . Wheel 13 | . . . . . . 2 . . . . 2 . . 5 . 1 . 3 Hover . | . . . . . . . . . . . . . . . . . . . Flight . | . . . . . . . . . . . . . . . . . . . Utility 157 | 1 5 . 1 . 6 13 2 4 9 1 7 2 2 42 35 9 4 14 Device 100 | . 3 . . . 2 3 . . 3 1 4 1 1 27 34 8 4 9 Storage 7 | 1 . . 1 . . 2 . . 1 . . . . 1 . . . 1 Processor 10 | . 1 . . . . 2 . 2 . . 1 . . 4 . . . . Hackware 2 | . . . . . . 1 . . . . . . . . 1 . . . Protection 38 | . 1 . . . 4 5 2 2 5 . 2 1 1 10 . 1 . 4 Artifact . | . . . . . . . . . . . . . . . . . . . Weapon 206 | 2 4 2 . 2 12 21 6 22 23 6 24 . 1 36 12 13 7 13 Energy Gun 27 | 2 3 1 . 1 7 5 2 4 2 . . . . . . . . . Energy Cannon 68 | . . . . . 1 5 1 7 7 1 8 . . 15 6 7 3 7 Ballistic Gun 8 | . 1 1 . . . 4 . . . . . . . 1 . 1 . . Ballistic Cannon 36 | . . . . . 1 4 1 4 6 2 6 . . 9 . . . 3 Launcher 42 | . . . . 1 3 3 2 6 2 2 7 . . 10 2 1 . 3 Special Weapon 15 | . . . . . . . . 1 5 1 . . 1 . 3 1 3 . Impact Weapon . | . . . . . . . . . . . . . . . . . . . Slashing Weapon . | . . . . . . . . . . . . . . . . . . . Piercing Weapon 10 | . . . . . . . . . 1 . 3 . . 1 1 3 1 . Special Melee Weapon . | . . . . . . . . . . . . . . . . . . . Unidentified Prototypes 14 | . . . . . 4 3 . 1 1 . . . . 3 . 1 . 1 Parts Lost 62 | . 4 2 . . 2 . 5 6 6 . 7 . . 10 1 . . 19 Power 8 | . 1 . . . . . 2 . 1 . 1 . . 1 . . . 2 Propulsion 15 | . 1 1 . . . . 2 1 2 . 2 . . 4 . . . 2 Utility 21 | . . . . . 1 . 1 2 2 . 2 . . 2 . . . 11 Weapon 18 | . 2 1 . . 1 . . 3 1 . 2 . . 3 1 . . 4 Highest Loss Streak 19 | . 3 2 . . 1 . 4 5 4 . 2 . . 3 1 . . 19 Average Slot Usage (%) 89 | . 95 99 88 85 83 85 85 91 91 92 91 93 86 91 86 85 86 78 Engine 12 | . 14 14 14 14 9 14 14 15 14 15 14 13 13 12 13 6 . . Treads 8 | . 17 5 . . 10 10 13 15 14 15 14 . . . . . . 1 Leg 3 | . 10 22 28 28 7 . . . . . . . . . . . . . Wheel 4 | . . . . . . 4 1 . . . . 13 13 12 13 13 13 8 Device 10 | . 9 14 3 . 12 7 7 7 9 15 6 13 19 18 10 12 13 11 Storage 13 | . 14 14 13 14 9 11 15 15 15 15 15 13 13 13 13 13 13 12 Processor 7 | . . . . . . 4 7 7 7 7 14 13 13 15 13 13 13 12 Protection 8 | . . . . . 17 12 9 14 12 7 7 13 6 4 6 6 6 6 Energy Gun 4 | . 24 17 14 13 11 4 4 2 . . . . . . . . . . Energy Cannon 4 | . . . . . 2 8 . 3 6 2 4 6 . 10 9 5 1 9 Ballistic Gun 1 | . 3 10 14 14 . . . . . . . . . . . . . . Ballistic Cannon 2 | . . . . . 3 . 4 7 1 2 4 6 . 1 . . . 1 Launcher 1 | . . . . . . . 4 1 1 9 5 . . . . . . . Special Weapon 1 | . . . . . . . . . 3 . . . 5 . 1 2 5 . Naked Turns . | . . . . . . . . . . . . . . . . . . . Heaviest Build 202 | 12 17 18 92 93 117 164 166 166 157 154 156 162 161 185 182 196 196 202 Greatest Support 80 | 40 40 20 20 20 40 40 40 43 51 51 51 20 20 26 26 26 26 80 Greatest Overweight (x) 16 | . . . 4 4 5 16 8 4 3 3 7 8 8 8 6 7 7 7 Average Overweight (x) 4 | . . . 2 4 2 4 4 3 2 2 2 8 7 7 6 6 6 5 Largest Inventory Capacity 52 | 6 6 6 24 24 24 44 32 32 52 32 32 32 32 52 32 32 32 40 Average Capacity 28 | 4 6 6 19 24 24 28 32 32 32 32 32 32 32 32 32 32 32 29 Most Carried 32 | 6 6 6 24 24 24 32 32 32 32 32 32 32 32 32 32 32 32 32 Average Carried 27 | 2 5 5 12 23 23 27 30 30 31 31 30 30 31 31 31 31 31 28 Final Capacity 32 | 6 6 6 24 24 24 32 32 32 32 32 32 32 32 32 32 32 32 4 Final Carried 32 | 6 6 6 24 24 24 32 32 26 32 32 30 32 32 32 31 32 32 4 Class Distribution -------------------- 81% | Hauler-Mutant 8% | Mutant 7% | Commander-Mutant Dominant Class ---------------- Mutant | -10/Materials Mutant | -10/Mines Hauler-Mutant | -10/Exiles Hauler-Mutant | -9/Mines Hauler-Mutant | -8/Materials Hauler-Mutant | -7/Factory Hauler-Mutant | -7/Lower Caves Hauler-Mutant | -7/Lower Caves Hauler-Mutant | -7/Zion Hauler-Mutant | -7/Deep Caves Hauler-Mutant | -6/Proximity Caves Hauler-Mutant | -6/Factory Hauler-Mutant | -6/Waste Hauler-Mutant | -6/Factory Hauler-Mutant | -6/Extension Commander-Mutant | -6/Cetus Commander-Mutant | -6/Archives Hauler-Mutant | -6/Hub_04(d) Resources | -11 -10 -10 -10 -9 -8 -7 -7 -7 -7 -7 -6 -6 -6 -6 -6 -6 -6 -6 ----------- Run | Scr Mat Min Exi Min Mat Fac Low Low Zio Dee Pro Fac Was Fac Ext Cet Arc Hub Matter Collected 8316 | 221 137 74 . 103 696 617 327 459 651 104 809 . 430 1807 884 306 153 538 Remotely . | . . . . . . . . . . . . . . . . . . . Salvage Created 11416 | . 426 195 . 210 1475 1671 246 622 710 72 1135 . 1242 2134 691 137 164 286 Parts 528 | . 28 14 . 9 81 63 19 32 65 7 40 . . 101 28 11 15 15 Haulers Intercepted 10 | . 1 . . . 6 1 . . . . . . . 2 . . . . Recyclers Shooed 9 | . 3 . . 1 4 . . . . . . . . 1 . . . . Parts Field Recycled . | . . . . . . . . . . . . . . . . . . . Retrieved Matter . | . . . . . . . . . . . . . . . . . . . Parts Self-Destructed 68 | . . . . . . . 15 35 1 . 17 . . . . . . . Prevented 20 | . . . . . . . 1 9 . . 10 . . . . . . . Kills | -11 -10 -10 -10 -9 -8 -7 -7 -7 -7 -7 -6 -6 -6 -6 -6 -6 -6 -6 ------- Run | Scr Mat Min Exi Min Mat Fac Low Low Zio Dee Pro Fac Was Fac Ext Cet Arc Hub Combat Hostiles Destroyed 198 | . 10 7 . 5 28 31 11 16 5 5 26 . 6 32 10 1 . 5 Guns 34 | . 10 7 . 3 8 4 1 1 . . . . . . . . . . Cannons 63 | . . . . . 7 13 2 5 4 1 4 . . 15 7 . . 5 AOE 81 | . . . . 2 13 8 8 9 . 4 18 . . 16 3 . . . Classes Destroyed 23 | . 6 1 . 1 3 3 . 2 4 1 . . 1 1 . . . . Worker 17 | . 1 . . 1 4 2 . . . . . . . 9 . . . . Builder 13 | . . 1 . . 3 1 . . . . . . . 8 . . . . Hauler 10 | . 1 . . . 6 1 . . . . . . . 2 . . . . Recycler 12 | . 1 . . 2 3 2 . . . . . . . 3 1 . . . Mechanic 1 | . . . . . . . . . . . . . . 1 . . . . Operator 6 | . . . . . 1 . . . . . . . . 1 1 . 3 . Watcher 13 | . 2 . . . 4 . . . . . . . . 5 1 . . 1 Swarmer 41 | . 5 3 . 4 10 4 5 1 . . 6 . . . 3 . . . Grunt 89 | . 5 4 . . 11 16 . 8 . . 17 . . 22 5 . . 1 Brawler 6 | . . . . . . 1 2 1 . . 2 . . . . . . . Duelist 4 | . . . . . . 1 1 . . . . . . 1 . . . 1 Sentry 14 | . . . . . 6 4 1 1 . . . . . 1 1 . . . Specialist 1 | . . . . . . . . 1 . . . . . . . . . . Hunter 8 | . . . . . 1 1 . 2 . . . . . 3 . 1 . . Programmer 12 | . . . . . . 4 2 2 . . . . . 4 . . . . Behemoth 3 | . . . . . . . . . . . 1 . . 1 1 . . . Compactor 6 | . . . . . . . . . . . . . 6 . . . . . Lightning 3 | . . . . . . . . . . . . . . . . . . 3 Zionite 28 | . . . . . . . . . 28 . . . . . . . . . Z-Light 2 | . . . . . . . . . . 2 . . . . . . . . Tinkerer 3 | . . . . . . . . 1 2 . . . . . . . . . Assembled 4 | . . . . 1 . . . . . 3 . . . . . . . . Thug 1 | . . . . . . . . . . . . . . . . . 1 . Butcher 1 | . . . . . . . . . 1 . . . . . . . . . Martyr 1 | . . . . . . . . . 1 . . . . . . . . . Marauder 1 | . . . . . . . . . 1 . . . . . . . . . Mutant 1 | . . . . . . . . . 1 . . . . . . . . . Best Kill Streak 17 | . 3 4 . 2 17 7 6 5 9 2 5 . 1 13 4 1 1 3 Combat Bots Only 6 | . 3 3 . 2 6 5 6 5 1 2 5 . 1 6 3 1 . 3 Max Kills in Single Turn 5 | . 2 2 . 1 5 3 3 2 2 2 2 . 1 4 2 1 1 1 Gunslinging 1 | . 1 1 . . . . . . . . . . . . . . . . Exploded 4 | . . . . 1 4 3 3 2 . 2 2 . . 2 2 . . . Melee . | . . . . . . . . . . . . . . . . . . . Uniques/NPCs Destroyed 2 | . . . . . . . . . 1 . . . . . . 1 . . Imprinter (-7/Zion) A7 (-6/Cetus) Combat | -11 -10 -10 -10 -9 -8 -7 -7 -7 -7 -7 -6 -6 -6 -6 -6 -6 -6 -6 -------- Run | Scr Mat Min Exi Min Mat Fac Low Low Zio Dee Pro Fac Was Fac Ext Cet Arc Hub Damage Taken 13658 | . 634 184 . 91 940 1320 949 863 757 200 1298 . . 1288 520 196 11 4407 Core 1638 | . 112 18 . 24 110 59 32 115 91 50 166 . . 135 56 . . 670 Absorbed by Shields 1997 | . 31 70 . . 135 . . . . . . . . 936 90 86 11 638 Reduced by Siege Mode 45 | . . . . . . . . . . . . . . . . . . 45 Core Remaining (%) 61 | 100 . . . 38 80 . . . . . 26 . . . . . . . Volleys Fired 799 | . 67 13 . 19 99 65 17 35 98 8 43 7 28 168 57 16 30 29 Largest 2 | . 2 2 . 2 2 2 2 2 2 2 2 1 1 2 2 2 2 2 Hottest 180 | . 130 130 . 98 122 132 122 150 150 113 150 90 90 180 180 144 180 180 Shots Fired 1290 | . 133 26 . 36 185 116 24 56 144 14 68 7 28 256 87 23 43 44 Gun 364 | . 133 26 . 34 106 22 13 8 22 . . . . . . . . . Cannon 751 | . . . . . 63 87 4 37 116 8 42 7 3 225 79 15 25 40 Launcher 114 | . . . . 2 16 7 7 11 1 5 26 . . 31 3 1 . 4 Special 61 | . . . . . . . . . 5 1 . . 25 . 5 7 18 . Kinetic 215 | . 36 11 . 17 37 18 4 13 27 4 11 . . 9 . . . 28 Thermal 748 | . 97 15 . 17 132 14 13 8 92 4 1 7 3 216 79 2 36 12 Explosive 114 | . . . . 2 16 7 7 11 1 5 26 . . 31 3 1 . 4 Electromagnetic 169 | . . . . . . 77 . 24 19 . 30 . . . . 13 6 . Robot Hit Streak 24 | . 10 7 . 4 17 24 10 8 20 9 12 . 6 13 11 11 7 17 Robot Miss Streak 13 | . 13 7 . 8 4 2 1 2 4 2 5 . 2 4 2 2 3 3 Penetration Max 1 | . . . . . . . . . . . . . . . . . . 1 Secondary Targets 3 | . 1 1 . 1 . . . . . . . . . . . . . . Max Gunslinging Chain 1 | . 1 1 . 1 . . . . . . . . . . . . . . Shots Hit Robots 810 | . 84 24 . 26 119 96 18 33 104 6 41 . 18 125 52 17 24 23 Core Hits 573 | . 45 19 . 19 67 60 17 29 49 16 53 . . 122 25 6 13 33 Critical Hits 20 | . 1 . . . 1 . . 2 . . . . . 6 1 . 3 6 Critical Kills 7 | . . . . . . . . . . . . . . 2 1 . 1 3 Critical Parts Destroyed 13 | . 1 . . . 1 . . 2 . . . . . 4 . . 2 3 Melee Attacks 19 | . . . . . . . . . 1 . 10 . . 2 . 6 . . Impact . | . . . . . . . . . . . . . . . . . . . Slashing . | . . . . . . . . . . . . . . . . . . . Piercing 19 | . . . . . . . . . 1 . 10 . . 2 . 6 . . Sneak Attacks 2 | . . . . . . . . . 1 . . . . . . 1 . . Combat Hostiles . | . . . . . . . . . . . . . . . . . . . Follow-up Attacks . | . . . . . . . . . . . . . . . . . . . Damage Inflicted 30915 | . 856 316 . 344 4037 3524 1378 1952 2557 561 3320 . . 7449 1987 523 642 1469 Guns 3886 | . 838 316 . 264 1522 406 220 140 180 . . . . . . . . . Cannons 13261 | . . . . . 893 1951 98 617 2186 82 871 . . 3468 1614 273 488 720 Explosions 13365 | . . . . 80 1612 1167 1060 1195 95 479 2449 . . 3981 373 151 . 723 Melee 195 | . . . . . . . . . 96 . . . . . . 99 . . Ramming 54 | . 18 . . . 10 . . . . . . . . . . . . 26 Kinetic 3163 | . 140 172 . 124 526 430 98 222 602 58 135 . . 196 . . . 460 Thermal 11133 | . 698 144 . 140 1889 739 220 185 1416 24 . . . 3272 1614 . 532 260 Explosive 12767 | . . . . 80 1612 688 1060 1150 95 479 2449 . . 3907 373 151 . 723 Electromagnetic 3603 | . . . . . . 1667 . 395 348 . 736 . . 74 . 273 110 . Impact . | . . . . . . . . . . . . . . . . . . . Slashing . | . . . . . . . . . . . . . . . . . . . Piercing 195 | . . . . . . . . . 96 . . . . . . 99 . . Highest Corruption 36 | . . . . . 5 4 4 4 4 . 3 . 23 27 27 21 19 36 Average Corruption 13 | . . . . . 5 2 4 4 4 . 2 . 13 25 24 20 10 18 Corruption Purged 27 | . . . . . . . . . . . . . . . 6 2 19 . Effects 709 | . . . . . 28 4 47 45 4 . 7 . 24 283 165 28 60 14 Message Errors 142 | . . . . . 7 2 14 18 2 . 2 . 6 50 22 7 11 1 Matter Fused 112 | . . . . . 8 1 13 10 1 . 3 . 1 41 19 . 13 2 Heat Flow Errors 58 | . . . . . 3 . 7 1 1 . 1 . 2 18 14 3 7 1 Energy Discharges 63 | . . . . . . . 7 4 . . . . 2 20 22 2 6 . Parts Rejected 4 | . . . . . . . . 1 . . . . . 1 1 1 . . Data Loss (minor) 60 | . . . . . 3 . 6 7 . . 1 . 3 20 12 . 7 1 Data Loss (major) 13 | . . . . . 1 . . . . . . . . 5 4 . 2 1 Misfires 22 | . . . . . 2 . . . . . . . . 12 5 2 1 . Alerts 10 | . . . . . . . . . . . . . . 4 2 2 2 . Misdirections 81 | . . . . . . . . . . . . . 6 34 29 7 1 4 Targeting Errors 114 | . . . . . 4 1 . 2 . . . . 4 60 26 3 10 4 Weapon Failures 30 | . . . . . . . . 2 . . . . . 18 9 1 . . Overload Shots . | . . . . . . . . . . . . . . . . . . . Overflow Damage 859 | . . . . . 117 151 45 68 72 . 69 . . 206 90 . 41 . Projectiles 395 | . . . . . 19 1 . 24 72 . 59 . . 95 84 . 41 . Explosions 464 | . . . . . 98 150 45 44 . . 10 . . 111 6 . . . Melee . | . . . . . . . . . . . . . . . . . . . Knockbacks 26 | . . . . . 2 1 . 1 2 1 1 . . 7 . . . 11 Impact . | . . . . . . . . . . . . . . . . . . . Kinetic 25 | . . . . . 2 1 . 1 2 1 1 . . 7 . . . 10 Secondary 1 | . . . . . . . . . . . . . . . . . . 1 Self-Inflicted Damage 1043 | . . . . . 131 96 315 49 . . 106 . . 236 26 . . 84 Shots 31 | . . . . . 4 4 7 2 . . 4 . . 7 1 . . 2 Rammed 17 | . 12 . . . 2 . . . . . . . . . . . . 3 Targets Rammed 17 | . 12 . . . 2 . . . . . . . . . . . . 3 Kicked . | . . . . . . . . . . . . . . . . . . . Crushed . | . . . . . . . . . . . . . . . . . . . Highest Temperature 404 | . 306 152 . 216 255 270 229 172 248 13 315 20 198 404 394 255 318 321 Average Temperature 79 | . 67 69 . 63 61 53 74 40 53 8 89 8 57 91 103 76 97 126 Received Heat Transfer 2111 | . 98 60 . . 270 306 105 285 63 45 315 . . 239 180 47 . 98 Effects 9 | . . . . . . . . . . . . . . 1 3 3 . 2 Shutdowns 2 | . . . . . . . . . . . . . . . 1 . . 1 Energy Bleed 3 | . . . . . . . . . . . . . . 1 2 . . . Interference 4 | . . . . . . . . . . . . . . . . 3 . 1 Siege Activations 1 | . . . . . . . . . . . . . . . . . . 1 Total Turns 40 | . . . . . . . . . . . . . . . . . . 40 Longest Duration 40 | . . . . . . . . . . . . . . . . . . 40 Robots Corrupted 12 | . . . . . . 6 . 1 1 . 3 . . . . 1 . . Combat Hostiles 12 | . . . . . . 6 . 1 1 . 3 . . . . 1 . . Parts Fried 26 | . . . . . . 12 . 5 7 . 1 . . . . 1 . . Impact Corruptions . | . . . . . . . . . . . . . . . . . . . Robots Melted 1 | . . . . . 1 . . . . . . . . . . . . . Combat Hostiles . | . . . . . . . . . . . . . . . . . . . Parts Melted 29 | . 3 . . . 10 . . . 1 . . . . 9 4 . 1 1 Heat Transferred 16604 | . 1538 180 . 175 3441 731 407 309 1995 37 . . . 4324 2103 . 1014 350 Parts Sabotaged . | . . . . . . . . . . . . . . . . . . . Parts Stolen . | . . . . . . . . . . . . . . . . . . . Parts Stripped . | . . . . . . . . . . . . . . . . . . . Power Chain Reactions 2 | . . . . . . 1 . 1 . . . . . . . . . . Missiles Intercepted . | . . . . . . . . . . . . . . . . . . . Alert | -11 -10 -10 -10 -9 -8 -7 -7 -7 -7 -7 -6 -6 -6 -6 -6 -6 -6 -6 ------- Run | Scr Mat Min Exi Min Mat Fac Low Low Zio Dee Pro Fac Was Fac Ext Cet Arc Hub Peak Influence 1116 | . 189 121 . 94 563 918 . . . . . 149 70 1116 807 872 436 1086 Initial 473 | . . 2 . . 15 202 . . . . . 142 52 49 473 451 268 . Average 287 | . 55 59 . 18 272 385 . . . . . 143 69 369 473 642 218 494 Maximum Alert Level 4 | . . . . . 2 3 . . . . . . . 4 3 3 2 3 Low Security (%) 44 | 100 100 100 . 100 28 14 . . . . . 100 100 25 23 . 38 28 Level 1 28 | . . . . . 52 44 . . . . . . . 50 6 . 48 27 Level 2 19 | . . . . . 19 32 . . . . . . . 9 62 75 12 11 Level 3 6 | . . . . . . 8 . . . . . . . 12 8 24 . 32 Level 4 . | . . . . . . . . . . . . . . 2 . . . . Level 5 . | . . . . . . . . . . . . . . . . . . . High Security . | . . . . . . . . . . . . . . . . . . . Max Security . | . . . . . . . . . . . . . . . . . . . Squads Dispatched 37 | . 2 . . . 6 9 . . . . . 1 . 13 1 . . 5 Investigation 9 | . 1 . . . 4 2 . . . . . 1 . 1 . . . . Extermination 7 | . . . . . . 3 . . . . . . . 4 . . . . Reinforcement 13 | . 1 . . . 2 2 . . . . . . . 7 . . . 1 Assault 4 | . . . . . . 1 . . . . . . . 1 1 . . 1 Garrison 4 | . . . . . . 1 . . . . . . . . . . . 3 Intercept . | . . . . . . . . . . . . . . . . . . . Construction Impeded 5 | . . . . . 1 1 . . . . . . . 3 . . . . Haulers Reinforced 2 | . . . . . . 1 . . . . . . . 1 . . . . Stealth | -11 -10 -10 -10 -9 -8 -7 -7 -7 -7 -7 -6 -6 -6 -6 -6 -6 -6 -6 --------- Run | Scr Mat Min Exi Min Mat Fac Low Low Zio Dee Pro Fac Was Fac Ext Cet Arc Hub Distress Signals 9 | . . . . 2 2 . . . . . . . . 1 1 2 . 1 Communications Jammed . | . . . . . . . . . . . . . . . . . . . Distress Signals . | . . . . . . . . . . . . . . . . . . . Times Spotted 409 | . 30 12 . 9 38 39 14 21 45 6 23 . 6 46 39 15 36 30 Peak Tracking Total 11 | . 4 3 . 4 6 6 7 4 6 3 4 . 1 7 5 5 2 11 Tactical Retreats 27 | . 3 . . . 2 3 1 1 12 . 1 . . 1 1 1 . 1 Traps | -11 -10 -10 -10 -9 -8 -7 -7 -7 -7 -7 -6 -6 -6 -6 -6 -6 -6 -6 ------- Run | Scr Mat Min Exi Min Mat Fac Low Low Zio Dee Pro Fac Was Fac Ext Cet Arc Hub Traps Triggered 11 | . . . . . 2 2 . . . . . 1 . 3 3 . . . Indirectly . | . . . . . . . . . . . . . . . . . . . Trap Hack Attempts . | . . . . . . . . . . . . . . . . . . . Triggered . | . . . . . . . . . . . . . . . . . . . Disarmed . | . . . . . . . . . . . . . . . . . . . Reprogrammed 6 | . . . . . . . . . . . . . . . . . . 6 Reused 1 | . . . . . . . . . . . . . . . . . . 1 Traps Extracted . | . . . . . . . . . . . . . . . . . . . Installed . | . . . . . . . . . . . . . . . . . . . Triggered 1 | . . . . . . . . . . . . . . . . . . 1 Machines | -11 -10 -10 -10 -9 -8 -7 -7 -7 -7 -7 -6 -6 -6 -6 -6 -6 -6 -6 ---------- Run | Scr Mat Min Exi Min Mat Fac Low Low Zio Dee Pro Fac Was Fac Ext Cet Arc Hub Machines Disabled 72 | . . . . 1 5 6 2 5 . 4 . . . 18 11 2 2 16 Max in Single Turn 3 | . . . . 1 1 3 1 1 . . . . . 3 1 1 1 1 Garrison Access 5 | . . . . . 1 1 . . . . . . . 3 . . . . Network Hub 1 | . . . . . . . . . . . . . . . . . . 1 Machines Sabotaged . | . . . . . . . . . . . . . . . . . . . Garrisons Compromised . | . . . . . . . . . . . . . . . . . . . Overloaded Fab Kills . | . . . . . . . . . . . . . . . . . . . Fab Network Shutdowns . | . . . . . . . . . . . . . . . . . . . Hacking | -11 -10 -10 -10 -9 -8 -7 -7 -7 -7 -7 -6 -6 -6 -6 -6 -6 -6 -6 --------- Run | Scr Mat Min Exi Min Mat Fac Low Low Zio Dee Pro Fac Was Fac Ext Cet Arc Hub Machines Accessed 64 | . 3 . 3 . 10 8 1 1 . . . 1 . 19 9 5 . 4 Terminals 38 | . 2 . . . 6 3 . . . . . . . 10 8 5 . 4 Fabricators 4 | . . . . . . 1 . . . . . 1 . 2 . . . . Repair Stations 5 | . . . . . 1 2 . . . . . . . 1 1 . . . Recycling Units 7 | . 1 . . . 2 1 . . . . . . . 3 . . . . Scanalyzers . | . . . . . . . . . . . . . . . . . . . Garrison Access 5 | . . . . . 1 1 . . . . . . . 3 . . . . Total Hacks 160 | . 8 . 3 . 27 21 1 1 . . . 2 . 40 29 17 . 11 Successful 73 | . 5 . 3 . 16 10 1 1 . . . . . 13 9 8 . 7 Failed 86 | . 3 . . . 11 11 . . . . . 2 . 27 20 8 . 4 Catastrophic 16 | . . . . . . 2 . . . . . . . 6 4 4 . . Database Lockouts 1 | . . . . . . . . . . . . . . . . 1 . . Manual 101 | . 6 . . . 10 12 . 1 4 . . . . 26 21 17 . 4 Terminals 118 | . 7 . . . 21 10 . . . . . . . 25 27 17 . 11 Fabricators 7 | . . . . . . 1 . . . . . 2 . 4 . . . . Repair Stations 12 | . . . . . 2 6 . . . . . . . 2 2 . . . Recycling Units 11 | . 1 . . . 3 1 . . . . . . . 6 . . . . Scanalyzers . | . . . . . . . . . . . . . . . . . . . Garrison Access 7 | . . . . . 1 3 . . . . . . . 3 . . . . Terminal Hacks 39 | . 3 . 3 . 11 2 1 1 . . . . . 3 6 4 . 5 Record 4 | . . . 3 . . . . . . . . . . . . 1 . . Part Schematic 1 | . . . . . . . . . . . . . . . . 1 . . Robot Analysis 5 | . 2 . . . 3 . . . . . . . . . . . . . Prototype ID Bank 2 | . . . . . 1 . . . . . . . . . . . . 1 Open Door 4 | . . . . . . . 1 1 . . . . . . 2 . . . Branch Access Points 3 | . . . . . 1 1 . . . . . . . 1 . . . . Alert Level 6 | . . . . . 2 1 . . . . . . . 1 1 1 . . Unreport Threat 7 | . . . . . 1 . . . . . . . . 1 3 1 . 1 Locate Traps 3 | . 1 . . . 1 . . . . . . . . . . . . 1 Reprogram Traps 1 | . . . . . . . . . . . . . . . . . . 1 Patrol Status 1 | . . . . . 1 . . . . . . . . . . . . . Hauler Manifests 2 | . . . . . 1 . . . . . . . . . . . . 1 Fabricator Hacks . | . . . . . . . . . . . . . . . . . . . Repair Station Hacks 7 | . . . . . . 5 . . . . . . . 1 1 . . . Scan Component 5 | . . . . . . 3 . . . . . . . 1 1 . . . Repair 2 | . . . . . . 2 . . . . . . . . . . . . Recycling Unit Hacks 3 | . . . . . . . . . . . . . . 3 . . . . Retrieve Components 3 | . . . . . . . . . . . . . . 3 . . . . Scanalyzer . | . . . . . . . . . . . . . . . . . . . Garrison Access Hacks 3 | . . . . . 1 . . . . . . . . 2 . . . . Seal Access 3 | . . . . . 1 . . . . . . . . 2 . . . . Unauthorized Hacks 21 | . 2 . . . 4 3 . . . . . . . 4 2 4 . 2 Terminals 14 | . 1 . . . 2 1 . . . . . . . 2 2 4 . 2 Track 3 | . . . . . 1 . . . . . . . . . . 2 . . Botnet 10 | . 1 . . . 1 1 . . . . . . . 2 2 1 . 2 Disrupt 1 | . . . . . . . . . . . . . . . . 1 . . Fabricators 2 | . . . . . . . . . . . . . . 2 . . . . Haulers 2 | . . . . . . . . . . . . . . 2 . . . . Repair Stations . | . . . . . . . . . . . . . . . . . . . Recycling Units 4 | . 1 . . . 2 1 . . . . . . . . . . . . Tunnel 4 | . 1 . . . 2 1 . . . . . . . . . . . . Scanalyzers . | . . . . . . . . . . . . . . . . . . . Garrison Access 1 | . . . . . . 1 . . . . . . . . . . . . Jam 1 | . . . . . . 1 . . . . . . . . . . . . Data Cores Recovered 1 | . . . . . . . . . . . . . . . . . . 1 Used 1 | . . . . . . . . . . . . . . . . . . 1 Hacking Detections 47 | . 2 . . . 7 6 . . . . . 1 . 14 8 5 . 4 Full Trace Events 2 | . . . . . . . . . . . . 1 . 1 . . . . Feedback Events . | . . . . . . . . . . . . . . . . . . . Feedback Blocked . | . . . . . . . . . . . . . . . . . . . Robot Schematics Acquired . | . . . . . . . . . . . . . . . . . . . Robots Built . | . . . . . . . . . . . . . . . . . . . Matter . | . . . . . . . . . . . . . . . . . . . Time . | . . . . . . . . . . . . . . . . . . . Total Robot Build Rating . | . . . . . . . . . . . . . . . . . . . Part Schematics Acquired 1 | . . . . . . . . . . . . . . . . 1 . . Parts Built . | . . . . . . . . . . . . . . . . . . . Matter . | . . . . . . . . . . . . . . . . . . . Time . | . . . . . . . . . . . . . . . . . . . Total Part Build Rating . | . . . . . . . . . . . . . . . . . . . Parts Repaired 2 | . . . . . . 2 . . . . . . . . . . . . Time 57 | . . . . . . 57 . . . . . . . . . . . . Parts Recycled . | . . . . . . . . . . . . . . . . . . . Recycled Matter . | . . . . . . . . . . . . . . . . . . . Retrieved Matter . | . . . . . . . . . . . . . . . . . . . Retrieved Components 16 | . . . . . . . . . . . . . . 16 . . . . Parts Scanalyzed . | . . . . . . . . . . . . . . . . . . . Part Schematics Acquired . | . . . . . . . . . . . . . . . . . . . Parts Damaged . | . . . . . . . . . . . . . . . . . . . Bothacking | -11 -10 -10 -10 -9 -8 -7 -7 -7 -7 -7 -6 -6 -6 -6 -6 -6 -6 -6 ------------ Run | Scr Mat Min Exi Min Mat Fac Low Low Zio Dee Pro Fac Was Fac Ext Cet Arc Hub Used RIF Installer . | . . . . . . . . . . . . . . . . . . . Robots Hacked 11 | . . . . . . . . . 3 1 . . . . 1 5 1 . Non-combat 1 | . . . . . . . . . . . . . . . . . 1 . Combat 10 | . . . . . . . . . 3 1 . . . . 1 5 . . Robot Hacks Applied 13 | . . . . . . . . . 4 1 . . . . 1 6 1 . parse_system 13 | . . . . . . . . . 4 1 . . . . 1 6 1 . Relay Couplers Released 3 | . . . . . . . . . . . . . . 3 . . . . Machine Destruction 3 | . . . . . . . . . . . . . . 3 . . . . Robots Rewired 18 | . . . . . . . 6 . . . . . . . 12 . . . Allies Hacked 1 | . . . . . . . . 1 . . . . . . . . . . Hacks Repelled . | . . . . . . . . . . . . . . . . . . . Allies | -11 -10 -10 -10 -9 -8 -7 -7 -7 -7 -7 -6 -6 -6 -6 -6 -6 -6 -6 -------- Run | Scr Mat Min Exi Min Mat Fac Low Low Zio Dee Pro Fac Was Fac Ext Cet Arc Hub Total Allies 39 | . . 6 . . . . 6 . . 1 . . . . 21 5 . . Largest Group 16 | . . 5 4 3 . . 5 5 . 1 1 . . . 16 16 13 9 Highest-Rated Group 873 | . . 89 58 40 . . 156 156 . 118 118 . . . 590 873 666 569 Highest-Rated Ally 156 | . . 31 18 16 . . 32 32 . 118 118 . . . 156 150 94 94 Total Orders . | . . . . . . . . . . . . . . . . . . . Ally Attacks 443 | . . 20 . 21 . . 8 34 . 11 2 . . . 193 83 26 45 Total Damage 14580 | . . 228 . 132 . . 296 642 . 2447 63 . . . 4301 2316 737 3418 Kills 104 | . . 3 . 3 . . 2 10 . 12 . . . . 27 14 4 29 Allies Corrupted 4 | . . . . . . . . . . . . . . . . . . 4 Allies Melted . | . . . . . . . . . . . . . . . . . . . Intel | -11 -10 -10 -10 -9 -8 -7 -7 -7 -7 -7 -6 -6 -6 -6 -6 -6 -6 -6 ------- Run | Scr Mat Min Exi Min Mat Fac Low Low Zio Dee Pro Fac Was Fac Ext Cet Arc Hub Robot Analysis Total 5 | . 2 . . . 3 . . . . . . . . . . . . . Derelict Logs Recovered 9 | . . 1 . 1 . . 2 2 2 . 1 . . . . . . . Drone Launches . | . . . . . . . . . . . . . . . . . . . Drone Recoveries . | . . . . . . . . . . . . . . . . . . . Exploration | -11 -10 -10 -10 -9 -8 -7 -7 -7 -7 -7 -6 -6 -6 -6 -6 -6 -6 -6 ------------- Run | Scr Mat Min Exi Min Mat Fac Low Low Zio Dee Pro Fac Was Fac Ext Cet Arc Hub Turns Passed 29285 | 69 1325 803 958 1464 2029 1808 2565 2518 4315 1035 1953 188 368 3555 2059 469 1308 496 Spaces Moved 11752 | 35 328 537 501 555 746 680 1105 1030 1584 455 768 106 192 1770 756 235 123 246 Core 33 | 2 . . . . . . . . . . . . . . . . . 31 Treads 6241 | 33 328 162 . . 486 477 911 1030 1584 455 767 . . . . . . 8 Legs 1691 | . . 375 501 555 260 . . . . . . . . . . . . . Wheels 3787 | . . . . . . 203 194 . . . 1 106 192 1770 756 235 123 207 Hover . | . . . . . . . . . . . . . . . . . . . Flight . | . . . . . . . . . . . . . . . . . . . Fastest Speed 50 | 50 160 120 120 240 180 150 160 220 220 220 150 160 150 150 150 150 150 50 Average Speed 195 | 153 160 132 187 240 218 207 220 230 221 220 222 160 150 157 150 154 158 147 Slowest Speed 310 | 160 160 160 240 240 270 245 240 240 250 250 310 160 160 165 150 160 160 180 Overloaded Moves . | . . . . . . . . . . . . . . . . . . . Propulsion Burnouts . | . . . . . . . . . . . . . . . . . . . Robots Hopped . | . . . . . . . . . . . . . . . . . . . Cave-ins Triggered . | . . . . . . . . . . . . . . . . . . . Exploration Rate (%) 69 | 5 53 99 91 99 74 22 98 99 90 65 84 5 98 52 86 80 80 35 Regions Visited 18 Branch Regions 12 Pre-discovered Areas 12 | . 1 2 1 1 2 1 . . 4 . . . . . . . . . Known Exits Taken 8 | . 1 . . . . 1 . . 1 . 1 . . 1 1 1 1 . Unknown Exits Taken 8 | 1 . 1 1 1 1 . 1 1 . 1 . . . . . . . . Scrap Searched 15 | . . 1 . 2 . . 3 5 2 . 2 . . . . . . . Spaces Dug 192 | . . . . 6 12 . 30 37 . . 21 6 3 60 2 . . 15 Terrain Destroyed 1071 | . . 2 . 16 200 39 67 70 2 48 188 7 3 349 26 6 5 43 Melee 9 | . . . . . . . . . . . 8 . . 1 . . . . Projectile 157 | . . 2 . 2 4 . . 5 . . 4 7 3 99 14 . 5 12 AOE 905 | . . . . 14 196 39 67 65 2 48 176 . . 249 12 6 . 31 Terrain Rammed . | . . . . . . . . . . . . . . . . . . . Walls Destroyed . | . . . . . . . . . . . . . . . . . . . Machines Disabled . | . . . . . . . . . . . . . . . . . . . Actions | -11 -10 -10 -10 -9 -8 -7 -7 -7 -7 -7 -6 -6 -6 -6 -6 -6 -6 -6 --------- Run | Scr Mat Min Exi Min Mat Fac Low Low Zio Dee Pro Fac Was Fac Ext Cet Arc Hub Total 16687 | 48 999 606 520 652 972 958 1210 1105 2238 473 912 119 231 2263 1574 308 1173 326 Wait 3166 | . 556 49 2 73 35 123 9 7 489 1 52 . 3 161 586 11 1006 3 Move 11735 | 34 327 536 500 554 745 679 1104 1029 1583 454 767 106 191 1769 755 234 122 246 Hop . | . . . . . . . . . . . . . . . . . . . Pick Up 176 | 8 12 2 15 2 30 19 10 2 17 1 4 4 2 28 9 6 2 3 Fast Attach 81 | 4 5 1 1 . 7 17 2 2 6 1 1 . . 18 2 6 . 8 Attach 74 | 2 5 2 . . 6 2 5 8 7 . 6 2 1 15 1 2 1 9 Detach 21 | . 3 . . . 1 4 . 1 3 . . . 2 7 . . . . Swap 267 | . 1 1 . 2 14 24 6 17 24 6 29 . 2 53 46 17 10 15 Drop 161 | . 11 2 2 2 33 23 6 4 10 2 . . 2 33 10 10 2 9 Fire 799 | . 67 13 . 19 99 65 17 35 98 8 43 7 28 168 57 16 30 29 Melee 19 | . . . . . . . . . 1 . 10 . . 2 . 6 . . Ram 5 | . . . . . . . . . . . . . . 1 . . . 4 Kick . | . . . . . . . . . . . . . . . . . . . Crush 14 | . 12 . . . 2 . . . . . . . . . . . . . Escape Stasis 34 | . . . . . . 2 . . . . . . . 8 24 . . . Rewire 135 | . . . . . . . 51 . . . . . . . 84 . . . Trap . | . . . . . . . . . . . . . . . . . . . Miscellaneous . | . . . . . . . . . . . . . . . . . . . Route ------- -11/Scrapyard -10/Materials (discovered 3 exits: [*Mat] / *Min x2) -10/Mines (discovered 3 exits: [*Mat x2] / *Exi) -10/Exiles (discovered 2 exits: [*Min x2]) -9/Mines (discovered 2 exits: *Mat x2) -8/Materials (discovered 2 exits: *Fac x2) -7/Factory (discovered 2 exits: *Low x2) -7/Lower Caves -7/Lower Caves (discovered 2 exits: *Fac / *Zio) -7/Zion (discovered 2 exits: *Dee / [*Pro]) -7/Deep Caves -6/Proximity Caves -6/Factory -6/Waste -6/Factory (discovered 5 exits: *Fac / *Low x2 / *Ext x2) -6/Extension (discovered 2 exits: *Fac / *Cet) -6/Cetus (discovered 2 exits: *Fac / *Arc) -6/Archives (discovered 3 exits: *Fac / *Hub x2) -6/Hub_04(d) History --------- Turn | Location | Event 14 | -11/Scrapyard | Discovered new exit (range 14) 70 | -11/Scrapyard | Entered Materials 254 | -10/Materials | Lost 3 parts (1p2w) 312 | -10/Materials | Build established: Mutant 575 | -10/Materials | Discovered new exit (range 11) 578 | -10/Materials | Discovered new exit (range 13) 765 | -10/Materials | Discovered new exit (range 9) 1391 | -10/Materials | Identified exit to Mines 1395 | -10/Materials | Entered Mines 1412 | -10/Mines | Escorted by a lone wolf Derelict 1432 | -10/Mines | Learned location of Storage (-9) 1533 | -10/Mines | Deemed a non-threat by the Exiles lab entrance 1533 | -10/Mines | Discovered new exit (range 5) 1599 | -10/Mines | A weapon hastily lodged in a ceiling crevice suddenly fell to the ground 1667 | -10/Mines | Discovered new exit (range 7) 1867 | -10/Mines | Assisted by bots powering up and referring to "LRC-V3" 1941 | -10/Mines | Learned Materials stockpile data 2000 | -10/Mines | Core integrity fell below 50% 2021 | -10/Mines | Discovered new exit (range 9) 2198 | -10/Mines | Entered Exiles 2198 | -10/Exiles | Accompanied by 4 allies 2214 | -10/Exiles | Discovered new exit (range 15) 2250 | -10/Exiles | Met 8R-AWN 2268 | -10/Exiles | Met EX-HEX 2300 | -10/Exiles | Met EX-BIN 2401 | -10/Exiles | Met EX-DEC 2406 | -10/Exiles | Learned location of Zion (-7) 2584 | -10/Exiles | Visited The Gauntlet 2767 | -10/Exiles | Build established: Hauler-Mutant 3128 | -10/Exiles | Discovered new exit (range 14) 3156 | -10/Exiles | Entered Mines 3156 | -9/Mines | Accompanied by 3 allies 3241 | -9/Mines | Assembled infested the area 3721 | -9/Mines | Received a Rocket Launcher from a helpful Derelict 3796 | -9/Mines | Discovered new exit (range 11) 4192 | -9/Mines | Discovered new exit (range 5) 4620 | -9/Mines | Entered Materials 4620 | -8/Materials | Evolved 4 slots: Utility x4 5775 | -8/Materials | Discovered new exit (range 16) 6396 | -8/Materials | Discovered new exit (range 8) 6649 | -8/Materials | Entered Factory 6649 | -7/Factory | Evolved 2 slots: Power x1, Utility x1 7659 | -7/Factory | Repaired Hvy. Armor Plating 7705 | -7/Factory | Garrison activated, responded to threat 8108 | -7/Factory | Identified exit to Lower Caves 8249 | -7/Factory | First assault squad dispatched 8269 | -7/Factory | Repaired Hvy. Armor Plating 8457 | -7/Factory | Entered Lower Caves 9428 | -7/Lower Caves | Encountered a Warlord checkpoint 9442 | -7/Lower Caves | Discovered new exit (range 8) 10240 | -7/Lower Caves | Attracted the attention of an 0b10 outpost 10284 | -7/Lower Caves | Lost 4 parts (2p1n1u) 10363 | -7/Lower Caves | Learned Factory stockpile data 10623 | -7/Lower Caves | Attacked by a delusional Derelict stockpiling Unaware 11022 | -7/Lower Caves | Entered another Lower Caves area 11022 | -7/Lower Caves | Accompanied by 5 allies 11069 | -7/Lower Caves | Learned Factory trap positions 11152 | -7/Lower Caves | Discovered new exit (range 8) 12724 | -7/Lower Caves | Acquired the password to a Derelict Tinkerer's latest research 12764 | -7/Lower Caves | Found Prototype Special Weapon 12764 | -7/Lower Caves | Identified Molecular Deconstructor 12992 | -7/Lower Caves | Attracted the attention of an 0b10 base 13043 | -7/Lower Caves | Caught by Unaware searching for contraband prototypes 13127 | -7/Lower Caves | Lost 5 parts (1n2u2w) 13219 | -7/Lower Caves | Discovered new exit (range 5) 13388 | -7/Lower Caves | Learned Factory non-interactive machine intel 13540 | -7/Lower Caves | Entered Zion 13661 | -7/Zion | System corruption cleaned by Quarantine Array 13730 | -7/Zion | Given A8's code to call for help 13769 | -7/Zion | Discovered new exit (range 11) 13986 | -7/Zion | Identified exit to Deep Caves 14043 | -7/Zion | Learned Factory garrison access intel 14191 | -7/Zion | Learned location of Warlord (-5) 14199 | -7/Zion | Found CR-A16's Pointy Stick 16678 | -7/Zion | Revealed the true nature of CR-A16's Pointy Stick 16679 | -7/Zion | Attacked by Zionites 16679 | -7/Zion | Spotted VV-EO4(B) 16685 | -7/Zion | Destroyed VV-EO4(B) 16762 | -7/Zion | Lost 4 parts (1p1n2u) 17551 | -7/Zion | Destroyed Imprinter 17553 | -7/Zion | Extracted access codes from Imprinter's data core 17810 | -7/Zion | Opened final containment barrier to the Deep Caves 17850 | -7/Zion | Saw the warning signs outside the Deep Caves entrance 17855 | -7/Zion | Entered Deep Caves 17858 | -7/Deep Caves | Met 5H-AD0 18178 | -7/Deep Caves | Z-Facility disabled 18311 | -7/Deep Caves | Found Zio. Weapon Casing 18877 | -7/Deep Caves | Discovered new exit (range 6) 18890 | -7/Deep Caves | Entered Proximity Caves 18890 | -6/Proximity Caves | Accompanied by 1 ally (5H-AD0) 18895 | -6/Proximity Caves | Thanked by 5H-AD0 19324 | -6/Proximity Caves | Core integrity fell below 50% 20051 | -6/Proximity Caves | Learned Factory terminal intel 20500 | -6/Proximity Caves | Discovered new exit (range 14) 20527 | -6/Proximity Caves | Identified exit to Factory 20722 | -6/Proximity Caves | Spotted B-75 Beast 20734 | -6/Proximity Caves | Destroyed B-75 Beast 20843 | -6/Proximity Caves | Entered Factory 20843 | -6/Factory | Evolved 2 slots: Utility x2 20844 | -6/Factory | Identified exit to Extension 20845 | -6/Factory | Loaded intel: 104 trap records 20847 | -6/Factory | Loaded intel: 217 non-interactive machine locations 20848 | -6/Factory | Loaded intel: 21 terminal locations 20849 | -6/Factory | Loaded intel: 4 garrison access locations 21031 | -6/Factory | Sucked down chute 21031 | -6/Factory | Entered Waste 21045 | -6/Waste | Spotted C-40 Crusher 21046 | -6/Waste | EMP discharged 21065 | -6/Waste | Destroyed C-40 Crusher 21111 | -6/Waste | Spotted C-40 Crusher 21126 | -6/Waste | Destroyed C-40 Crusher 21135 | -6/Waste | Spotted C-40 Crusher 21146 | -6/Waste | EMP discharged 21146 | -6/Waste | System corruption reached 10% 21156 | -6/Waste | Destroyed C-40 Crusher 21165 | -6/Waste | Spotted C-40 Crusher 21192 | -6/Waste | Destroyed C-40 Crusher 21205 | -6/Waste | Spotted C-40 Crusher 21220 | -6/Waste | Destroyed C-40 Crusher 21244 | -6/Waste | Spotted C-40 Crusher 21246 | -6/Waste | Destroyed C-40 Crusher 21246 | -6/Waste | EMP discharged 21304 | -6/Waste | Discovered new exit (range 15) 21346 | -6/Waste | EMP discharged 21397 | -6/Waste | Identified exit to Factory 21399 | -6/Waste | Entered Factory 22318 | -6/Factory | Lost 3 parts (1p1u1w) 22603 | -6/Factory | Discovered new exit (range 16) 22626 | -6/Factory | Identified exit to Factory 22940 | -6/Factory | Found Prototype Processor 22940 | -6/Factory | Identified Exp. Signal Interpreter 22947 | -6/Factory | Found Exp. Signal Interpreter 23084 | -6/Factory | Discovered new exit (range 16) 23106 | -6/Factory | Identified exit to Lower Caves 23773 | -6/Factory | Spotted B-75 Beast 23782 | -6/Factory | Destroyed B-75 Beast 24954 | -6/Factory | Entered Extension 25365 | -6/Extension | Rescued a captive Derelict 25376 | -6/Extension | Rescued a captive Derelict 25403 | -6/Extension | Rescued a captive Derelict 25490 | -6/Extension | Rescued A7 25878 | -6/Extension | Spotted B-75 Beast 25884 | -6/Extension | Destroyed B-75 Beast 25905 | -6/Extension | Spotted B-75 Beast 25918 | -6/Extension | Allies destroyed B-75 Beast 26011 | -6/Extension | Rescued a captive Derelict 26044 | -6/Extension | Rescued a captive Derelict 26045 | -6/Extension | Rescued a captive Derelict 26077 | -6/Extension | Rescued a captive Derelict 26310 | -6/Extension | Rescued a captive Derelict 26354 | -6/Extension | First assault squad dispatched 26396 | -6/Extension | Discovered exit to Factory (range 10) 26397 | -6/Extension | Discovered new exit (range 6) 26420 | -6/Extension | Identified exit to Cetus 27013 | -6/Extension | Entered Cetus 27013 | -6/Cetus | Accompanied by 12 allies (A7) 27018 | -6/Cetus | Acquired a Cetus Manufacturing Module code from A7 27040 | -6/Cetus | Spotted Cetus Guard 27040 | -6/Cetus | Spotted Cetus Guard 27046 | -6/Cetus | Spotted Cetus Guard 27046 | -6/Cetus | Spotted Cetus Guard 27052 | -6/Cetus | Allies destroyed Cetus Guard 27053 | -6/Cetus | Allies destroyed Cetus Guard 27063 | -6/Cetus | Allies destroyed Cetus Guard 27145 | -6/Cetus | Started Cetus Manufacturing Module 27169 | -6/Cetus | Found a strange terminal 27170 | -6/Cetus | Manufactured an Enhanced Grunt 27195 | -6/Cetus | Manufactured an Enhanced Grunt 27214 | -6/Cetus | Escorted A7 to Cetus Mainframe 27220 | -6/Cetus | Manufactured an Enhanced Grunt 27245 | -6/Cetus | Manufactured an Enhanced Grunt 27260 | -6/Cetus | Central database locked down 27270 | -6/Cetus | Manufactured an Enhanced Grunt 27330 | -6/Cetus | Discovered new exit (range 15) 27358 | -6/Cetus | Spotted Cetus Guard 27359 | -6/Cetus | Spotted Cetus Guard 27361 | -6/Cetus | Spotted Cetus Guard 27362 | -6/Cetus | Spotted Cetus Guard 27370 | -6/Cetus | Allies destroyed Cetus Guard 27370 | -6/Cetus | Allies destroyed Cetus Guard 27372 | -6/Cetus | Allies destroyed Cetus Guard 27374 | -6/Cetus | Allies destroyed Cetus Guard 27383 | -6/Cetus | Discovered exit to Factory (range 15) 27408 | -6/Cetus | Met Revision 17 27420 | -6/Cetus | Destroyed A7 27424 | -6/Cetus | Extracted ID and sensor layout for unrecognized location from A7's data core 27431 | -6/Cetus | Found Med. Regenerative Plating 27474 | -6/Cetus | Identified exit to Archives 27482 | -6/Cetus | Entered Archives 27482 | -6/Archives | Accompanied by 13 allies 27505 | -6/Archives | Build established: Commander-Mutant 27557 | -6/Archives | Discovered new exit (range 16) 27717 | -6/Archives | Discovered exit to Factory (range 15) 27777 | -6/Archives | Discovered new exit (range 14) 27817 | -6/Archives | Identified exit to Hub_04(d) 28790 | -6/Archives | Entered Hub_04(d) 28790 | -6/Hub_04(d) | Accompanied by 9 allies 29064 | -6/Hub_04(d) | Garrison activated, responded to threat 29123 | -6/Hub_04(d) | Network Hub disabled 29127 | -6/Hub_04(d) | Spotted Lightning 29127 | -6/Hub_04(d) | Spotted Lightning 29128 | -6/Hub_04(d) | Spotted Lightning 29130 | -6/Hub_04(d) | Spotted Lightning 29140 | -6/Hub_04(d) | First assault squad dispatched 29145 | -6/Hub_04(d) | Spotted Lightning 29149 | -6/Hub_04(d) | Spotted Lightning 29182 | -6/Hub_04(d) | Destroyed Lightning 29188 | -6/Hub_04(d) | Destroyed Lightning 29197 | -6/Hub_04(d) | Destroyed Lightning 29200 | -6/Hub_04(d) | Spotted Lightning 29261 | -6/Hub_04(d) | Core integrity fell below 50% 29261 | -6/Hub_04(d) | System corruption reached 30% 29261 | -6/Hub_04(d) | Found Prototype Device 29261 | -6/Hub_04(d) | Identified Exp. Phase Shifter 29277 | -6/Hub_04(d) | Core integrity fell below 20% 29286 | -6/Hub_04(d) | Destroyed by Lightning with EMDS Last Messages --------------- 29269_ U-05 Engineer lays Concrete. 29271_ Acquired 83 matter. 29272_ U-05 Engineer builds a Wall. 29272_ U-05 Engineer lays Concrete. 29273_ The unstable cave ceiling collapses. 29273_ EMDS Slug penetrates Wall. 29273_ U-05 Engineer lays Concrete. 29274_ EMDS Slug penetrates Wall. 29274_ U-05 Engineer lays Concrete. 29275_ System corrupted: Substantial component data lost. 29275_ U-05 Engineer builds a Wall. 29275_ U-05 Engineer lays Concrete. 29276_ Penetrated by EMDS Slug. 29277_ U-05 Engineer lays Concrete. 29280_ U-05 Engineer builds a Door. 29281_ U-05 Engineer lays Concrete. 29283_ Acquired Arm. Huge Wheel. 29285_ Penetrated by EMDS Slug. 29286_ U-05 Engineer builds a Wall. 29286_ Penetrated by EMDS Slug. Map ----- +----------------------------------------------------+ | #### + "# #! [* # ???????????????? | | # /! #! "## ]* ** + ???????????????? | | ???# #%="# #!= # "?????????????? | | ???######"#% " !# *=] " #? "?????????????? | | ???# #= " !#%/!!!| #??? ??????????????? | | ???# """""]"%" #####!####"##????? ?????????????? | | ???# " %= %#!!]#???##?????????????????????? | | ???# " [ =# !*#??????????????????????????? | | ???# " % " #??????????????????????????? | | ???# " = =!" ##??????????????????????????? | | ???# " %=" #??????????????????????????? | | ???# " = " #??????????????????????????? | | ???# " % ; ##??????????????????????????? | | ???# " s; #???????###?????????????????? | | ???# " l!;;####### # ?????????????? | | ???# " [u= ??????????????? | | ???##"""""""";;;===s= ##?????????????????????? | | ??? ;% #??????????????????????? | | ?? ; #??????????????????????? | | ??? ; s #??????????????????????? | | ??? ; [ #??????????????????????? | | ???? %*; #??????????????????????? | | ????"""""""""""";;; #??????????????????????? | | ????? " ###### "# ##+##+#????????????????? | | ?????? " #????????????????? | | ??????? "? ####;@## #????????????????? | | ?????????? |#?# # ^ #????????????????? | | ?????????? !%#?# == # #????????????????? | | ?????????? *??#=== #?? #????????????????? | | ??????????? ??#=== #????#????????????????? | | ??????????? ??# #?????????????????????? | | ???????????? #""??# #?????????????????????? | | ????????????/#????????# #?????????????????????? | | ??????????????????????# " #?????????????????????? | | ??????????????????????# " #?????????????????????? | | ??????????????????????# " #?????????????????????? | | ??????????????????????# #?????????????????????? | | ??????????????????????# #?????????????????????? | | ???????????????????????####??????????????????????? | | | | | | | | | | | | | | | | | | | | | | | +----------------------------------------------------+ Best States ------------- Heat Dissipation 90 Energy Generation 45 Energy Capacity 600 Matter Stores 300 Matter Capacity 300 Sight Range 16 Robot Scan Range 22 Terrain Scan Density 10 Armor Coverage 900 Resistance: KI 30 Resistance: TH 10 Resistance: EM 15 Weapon Shielding 100 Weapon Cycling 15 Evasion (%) 50 Targeting Accuracy 8 Recoil Reduction 2 Particle Charging 20 Offensive Hacking 10 Defensive Hacking 12 Item Schematics ----------------- Hvy. Reactive Plating | -6/Cetus | Hacked Robot Schematics ------------------ None Fabricated ------------ Nothing Alien Tech Used ----------------- None Achievements -------------- None Challenges ------------ None Game ------ Seed ProcessingPhasingArray Manual? 0 Play Time 04:49:08 Cumulative 1245.5 hours Start 2020.09.23 @ 21:39:07 End 2020.09.24 @ 18:45:13 Sessions 3 Manual Loads 0 Difficulty Rogue Special Mode None Game No. 407 Rogue 407 Adventurer 0 Explorer 0 Win Type - Total 258 Types 215/7/14/4/3/2/13/0/0 Lore% 96 Gallery% 98 Achievement% 94 Wizard Run 0 Options --------- ASCII 0 Keyboard 0 Movement Numpad Keybinds 0 Fullscreen 0 Font 16/SmallcapsGlow Map View 76x50 Tactical HUD 1 Map Filters NONE Filters NONE Steam 1 RUN: 6e8d8d7a-48ec-499b-b929-9cf4dd293f7f